[Event "POL-chT Ekstraliga 2018"]
[Site "Wroclaw"]
[Date "2018.09.14"]
[Round "4"]
[White "Michalik, Peter"]
[Black "Leniart, Arkadiusz"]
[Result "1-0"]
[ECO "C55"]
[WhiteElo "2556"]
[BlackElo "2494"]
[Annotator "RC"]
[PlyCount "81"]
[EventDate "2018.06.08"]
[EventType "team-tourn"]
[EventCountry "POL"]
[SourceTitle "playchess.com"]
[Source "ChessBase"]
[SourceQuality "1"]
[TimeControl "40/5400+30:1800+30"]

1. e4 {[%emt 0:00:00]} e5 {[%emt 0:00:22]} 2. Nf3 {[%emt 0:00:00]} Nc6 {[%emt 0:00:03]} 3. Bc4 {[%emt 0:00:00]} Nf6 {[%emt 0:00:10]} 4. d3 {[%emt 0:00:00]} Be7 {[%emt 0:01:25]} 5. O-O {[%emt 0:00:12]} O-O {[%emt 0:01:02]} 6. Re1 {[%emt 0:01:11]} d6 {[%emt 0:00:42]} 7. a4 {[%emt 0:04:59]} Na5 {[%emt 0:04:44]} 8. Ba2 {[%emt 0:00:10]} c5 {[%emt 0:00:05]} 9. c3 {[%emt 0:04:08]} Nc6 {[%emt 0:01:48]} 10. Nbd2 {[%emt 0:04:39]} Be6 {[%emt 0:04:03]} 11. Bxe6 {[%emt 0:06:21]} fxe6 {[%emt 0:00:03]} 12. Nf1 {[%emt 0:00:09]} Ne8 {[%emt 0:06:12]} 13. Rb1 {[%emt 0:05:55]} Nc7 {[%emt 0:03:22]} 14. Be3 {[%emt 0:04:51]} d5 {[%emt 0:08:58]} 15. Ng3 {[%emt 0:08:09]} d4 {[%emt 0:13:45]} 16. Bd2 {[%emt 0:00:47]} Rb8 {[%emt 0:08:01]} 17. h3 {[%emt 0:04:16]} Qd7 {[%emt 0:08:23]} 18. Qe2 {[%emt 0:16:57]} b5 {[%emt 0:09:59]} 19. axb5 {[%emt 0:03:47]} Rxb5 {[%emt 0:00:06]} 20. c4 {[%emt 0:02:00]} Rb3 {[%emt 0:00:56]} 21. Red1 {[%emt 0:02:22]} Rfb8 {[%emt 0:01:01]} 22. Bc1 {[%emt 0:00:24]} Bd6 {[%emt 0:06:24]} 23. Ra1 {[%emt 0:00:19]} R3b6 {[%emt 0:01:54]} 24. h4 {[%emt 0:03:13]} Ra6 {[%emt 0:02:35]} 25. Rxa6 {[%emt 0:02:38]} Nxa6 {[%emt 0:00:06]} 26. h5 {[%emt 0:00:11]} Na5 {[%emt 0:03:57]} 27. h6 {[%emt 0:01:04]} g6 {[%emt 0:00:23]} 28. Nf1 {[%emt 0:00:49]} Nb4 {[%emt 0:04:02]} 29. N1h2 {[%emt 0:01:58]} Nb3 {[%emt 0:03:06]} 30. Bg5 {[%emt 0:03:42]} Qc7 {[%emt 0:02:10]} 31. Ng4 {[%emt 0:00:30]} Nc6 {[%emt 0:00:52]} 32. Bf6 {[%emt 0:00:15]} a5 {[%emt 0:00:55]} 33. Bg7 {[%emt 0:00:24]} Be7 {[%emt 0:01:08]} 34. Nfxe5 {[%emt 0:01:54]} a4 {[%emt 0:02:13]} 35. Qf3 {[%emt 0:01:55]} Bg5 {[%emt 0:01:08]} 36. Nxc6 {[%emt 0:08:17]} Qxc6 {[%emt 0:00:07]} 37. Qg3 {[%emt 0:00:04]} Qb6 {[%emt 0:00:57]} 38. Bf6 {[%emt 0:00:14]} Bc1 {[%emt 0:00:43]} 39. Be5 {[%emt 0:03:24]} Rb7 {[%emt 0:00:40]} 40. Qf3 {[%emt 0:00:00]} Bg5 {[%emt 0:00:00]} 41. Nf6+ {[%emt 0:03:12]} 1-0

[Event "POL-chT Ekstraliga 2018"]
[Site "Wroclaw"]
[Date "2018.09.14"]
[Round "4"]
[White "Osmak, Iulija"]
[Black "Majdan, Joanna"]
[Result "0-1"]
[ECO "A43"]
[WhiteElo "2405"]
[BlackElo "2371"]
[Annotator "NA"]
[PlyCount "82"]
[EventDate "2018.06.08"]
[EventType "team-tourn"]
[EventCountry "POL"]
[SourceTitle "playchess.com"]
[Source "ChessBase"]
[SourceQuality "1"]
[TimeControl "40/5400+30:1800+30"]

1. d4 {[%emt 0:00:00]} c5 {[%emt 0:00:00]} 2. d5 {[%emt 0:00:00]} e6 {[%emt 0:00:00]} 3. e4 {[%emt 0:00:04]} Nf6 {[%emt 0:00:43]} 4. dxe6 {[%emt 0:01:32]} dxe6 {[%emt 0:04:20]} 5. Qxd8+ {[%emt 0:00:33]} Kxd8 {[%emt 0:00:03]} 6. Nc3 {[%emt 0:01:14]} Nc6 {[%emt 0:03:38]} 7. Bf4 {[%emt 0:01:34]} Bd7 {[%emt 0:05:18]} 8. O-O-O {[%emt 0:07:30]} Be7 {[%emt 0:04:09]} 9. Nf3 {[%emt 0:03:17]} h6 {[%emt 0:10:35]} 10. h3 {[%emt 0:06:31]} g5 {[%emt 0:05:27]} 11. Bh2 {[%emt 0:03:26]} Ke8 {[%emt 0:03:41]} 12. e5 {[%emt 0:19:03]} Nd5 {[%emt 0:09:14]} 13. Ne4 {[%emt 0:14:10]} Rd8 {[%emt 0:05:14]} 14. Nfd2 {[%emt 0:05:12]} Na5 {[%emt 0:01:45]} 15. Be2 {[%emt 0:02:20]} Bc6 {[%emt 0:04:28]} 16. Bf3 {[%emt 0:03:00]} Kf8 {[%emt 0:00:46]} 17. Nd6 {[%emt 0:04:14]} Bxd6 {[%emt 0:05:13]} 18. exd6 {[%emt 0:00:04]} Nf4 {[%emt 0:00:29]} 19. h4 {[%emt 0:08:36]} Kg7 {[%emt 0:05:11]} 20. hxg5 {[%emt 0:03:48]} hxg5 {[%emt 0:00:04]} 21. Bxc6 {[%emt 0:01:23]} Nxc6 {[%emt 0:00:51]} 22. Ne4 {[%emt 0:00:23]} Kg6 {[%emt 0:01:19]} 23. Nxc5 {[%emt 0:03:02]} b6 {[%emt 0:00:18]} 24. Ne4 {[%emt 0:00:50]} f5 {[%emt 0:02:28]} 25. Nc3 $15 {[%emt 0:00:43]} Nxg2 {[%emt 0:07:06]} 26. Nb5 {[%emt 0:02:46]} Kf6 {[%emt 0:02:00]} 27. d7 {[%emt 0:02:11]} f4 {[%emt 0:01:23]} 28. Nd6 {[%emt 0:05:36]} Rxd7 {[%emt 0:06:10]} 29. Ne4+ {[%emt 0:00:12]} Ke7 {[%emt 0:00:18]} 30. Rdg1 {[%emt 0:00:05]} Nh4 {[%emt 0:02:11]} 31. Rxg5 {[%emt 0:01:35]} Nf5 {[%emt 0:00:28]} 32. Rgg1 {[%emt 0:00:08]} Ncd4 {[%emt 0:01:33]} 33. Nc3 {[%emt 0:00:44]} Rh4 {[%emt 0:00:43]} 34. Bxf4 {[%emt 0:00:41]} Rxf4 {[%emt 0:00:03]} 35. Rh7+ {[%emt 0:00:19]} Kd8 {[%emt 0:01:04]} 36. Rg8+ {[%emt 0:00:21]} Kc7 {[%emt 0:00:06]} 37. Rhh8 {[%emt 0:00:06]} Rxf2 {[%emt 0:00:56]} 38. Rc8+ {[%emt 0:00:32]} Kb7 {[%emt 0:00:03]} 39. Rb8+ {[%emt 0:00:16]} Ka6 {[%emt 0:00:04]} 40. b4 {[%emt 0:00:00]} Rxc2+ {[%emt 0:00:00]} 41. Kb1 {[%emt 0:00:22]} Rxc3 {[%emt 0:00:12]} 0-1

[Event "POL-chT Ekstraliga 2018"]
[Site "Wroclaw"]
[Date "2018.09.14"]
[Round "4"]
[White "Hnydiuk, Aleksander"]
[Black "Mikrut, Dariusz"]
[Result "1-0"]
[ECO "A45"]
[WhiteElo "2397"]
[BlackElo "2379"]
[Annotator "NA"]
[PlyCount "93"]
[EventDate "2018.06.08"]
[EventType "team-tourn"]
[EventCountry "POL"]
[SourceTitle "playchess.com"]
[Source "ChessBase"]
[SourceQuality "1"]
[TimeControl "40/5400+30:1800+30"]

1. d4 {[%emt 0:00:00]} Nf6 {[%emt 0:00:40]} 2. Bf4 {[%emt 0:00:00]} d6 {[%emt 0:00:43]} 3. Nc3 {[%emt 0:03:14]} g6 {[%emt 0:01:36]} 4. e4 {[%emt 0:00:15]} Bg7 {[%emt 0:00:07]} 5. Qd2 {[%emt 0:00:24]} a6 {[%emt 0:03:26]} 6. Bh6 {[%emt 0:05:21]} O-O {[%emt 0:01:46]} 7. O-O-O {[%emt 0:40:01]} b5 {[%emt 0:07:12]} 8. f3 {[%emt 0:00:45]} Bxh6 {[%emt 0:06:40]} 9. Qxh6 {[%emt 0:00:06]} b4 {[%emt 0:00:02]} 10. Nce2 {[%emt 0:02:56]} c5 {[%emt 0:08:07]} 11. e5 {[%emt 0:09:46]} Nd5 {[%emt 0:11:06] [#]} 12. dxc5 $2 {[%emt 0:06:51]} ({Better is} 12. h4 $1 $18) 12... dxe5 {[%emt 0:01:09]} 13. Ng3 {[%emt 0:04:14]} e6 {[%emt 0:07:28]} 14. Bc4 {[%emt 0:02:57]} Qe7 {[%emt 0:11:14]} 15. Ne4 {[%emt 0:02:17]} Nd7 {[%emt 0:07:51]} 16. Nh3 {[%emt 0:15:07]} Bb7 {[%emt 0:03:47]} 17. Nhg5 {[%emt 0:01:47]} f6 {[%emt 0:00:48]} (17... f5 $16) 18. Nxe6 {[%emt 0:00:28]} Qxe6 $18 {[%emt 0:06:46]} 19. Qd2 {[%emt 0:00:03]} Rac8 {[%emt 0:02:32]} 20. Bxd5 {[%emt 0:00:17]} Bxd5 {[%emt 0:00:07]} 21. Qxd5 {[%emt 0:00:02]} Qxd5 {[%emt 0:00:29]} 22. Rxd5 {[%emt 0:00:05]} f5 {[%emt 0:00:12]} 23. Nd6 {[%emt 0:03:58]} Rxc5 {[%emt 0:01:29]} 24. Nxf5 {[%emt 0:00:06]} gxf5 {[%emt 0:03:50]} 25. Rxd7 {[%emt 0:00:04]} Rfc8 {[%emt 0:01:04]} 26. Rd2 {[%emt 0:00:03]} e4 {[%emt 0:00:19]} 27. fxe4 {[%emt 0:00:12]} fxe4 {[%emt 0:00:05]} 28. Re1 {[%emt 0:00:09]} Re8 {[%emt 0:00:30]} 29. Rd4 {[%emt 0:01:31]} e3 {[%emt 0:00:41]} 30. Rxb4 {[%emt 0:00:22]} Rg5 {[%emt 0:01:06]} 31. g3 {[%emt 0:01:07]} Rf5 {[%emt 0:00:25]} 32. Rb3 {[%emt 0:00:42]} e2 {[%emt 0:00:21]} 33. Kd2 {[%emt 0:00:13]} Rf2 {[%emt 0:00:06]} 34. h3 {[%emt 0:00:56]} Rh2 {[%emt 0:00:16]} 35. h4 {[%emt 0:00:18]} Rg2 {[%emt 0:00:18]} 36. Re3 {[%emt 0:00:41]} Rxe3 {[%emt 0:00:42]} 37. Kxe3 {[%emt 0:00:02]} Rxg3+ {[%emt 0:00:05]} 38. Kxe2 {[%emt 0:00:05]} Rg4 {[%emt 0:00:08]} 39. Rh1 {[%emt 0:00:55]} Rg2+ {[%emt 0:00:05]} 40. Kd3 {[%emt 0:00:00]} Kf7 {[%emt 0:00:00]} 41. Rf1+ {[%emt 0:01:00]} Ke6 {[%emt 0:00:09]} 42. Rf4 {[%emt 0:00:13]} Ke5 {[%emt 0:00:16]} 43. Ra4 {[%emt 0:01:54]} Rg6 {[%emt 0:01:44]} 44. Re4+ {[%emt 0:02:08]} Kf5 {[%emt 0:00:10]} 45. Ra4 {[%emt 0:05:09]} h5 {[%emt 0:01:45]} 46. Ra5+ {[%emt 0:10:37]} Kg4 {[%emt 0:00:41]} 47. Rg5+ {[%emt 0:00:28]} 1-0

[Event "POL-chT Ekstraliga 2018"]
[Site "Wroclaw"]
[Date "2018.09.14"]
[Round "4"]
[White "Pacak, Patrycja"]
[Black "Warakomska, Anna"]
[Result "0-1"]
[ECO "A03"]
[WhiteElo "1754"]
[BlackElo "2349"]
[Annotator "NA"]
[PlyCount "62"]
[EventDate "2018.06.08"]
[EventType "team-tourn"]
[EventCountry "POL"]
[SourceTitle "playchess.com"]
[Source "ChessBase"]
[SourceQuality "1"]
[TimeControl "40/5400+30:1800+30"]

1. f4 {[%emt 0:00:00]} d5 {[%emt 0:00:00]} 2. Nf3 {[%emt 0:00:00]} g6 {[%emt 0:01:38]} 3. g3 {[%emt 0:00:10]} Bg7 {[%emt 0:00:14]} 4. Bg2 {[%emt 0:00:07]} Nh6 {[%emt 0:03:24]} 5. d3 {[%emt 0:04:25]} Nc6 {[%emt 0:02:15]} 6. Nc3 {[%emt 0:03:32]} d4 {[%emt 0:13:22]} 7. Ne4 $11 {[%emt 0:05:10]} Nf5 {[%emt 0:01:05]} 8. c3 {[%emt 0:15:47]} h5 {[%emt 0:09:40]} 9. Qa4 {[%emt 0:25:53]} O-O {[%emt 0:08:43]} 10. O-O {[%emt 0:01:04]} Qe8 {[%emt 0:10:44]} 11. Nfg5 {[%emt 0:08:40]} e5 {[%emt 0:08:20]} 12. c4 {[%emt 0:12:52]} Ne3 {[%emt 0:04:50]} 13. Bxe3 {[%emt 0:03:08]} dxe3 {[%emt 0:00:04]} 14. fxe5 {[%emt 0:01:51]} Qxe5 {[%emt 0:00:44]} 15. b4 {[%emt 0:06:18]} Qe7 {[%emt 0:03:56]} 16. Rab1 {[%emt 0:03:07]} Nd4 {[%emt 0:02:46]} 17. h4 {[%emt 0:03:47]} Nxe2+ {[%emt 0:00:57]} 18. Kh2 {[%emt 0:00:04]} f6 {[%emt 0:03:38]} 19. Qd1 {[%emt 0:01:48]} Nd4 {[%emt 0:01:26]} 20. Re1 {[%emt 0:01:40]} e2 {[%emt 0:03:15]} 21. Qc1 {[%emt 0:00:04]} fxg5 {[%emt 0:00:23]} 22. Nxg5 {[%emt 0:00:58]} c6 {[%emt 0:01:34]} 23. b5 {[%emt 0:00:32]} Bg4 {[%emt 0:00:22]} 24. bxc6 {[%emt 0:00:17]} bxc6 {[%emt 0:00:06]} 25. c5 {[%emt 0:00:44]} Rf2 {[%emt 0:02:06]} 26. Ne4 {[%emt 0:00:30]} Rxg2+ {[%emt 0:03:24]} 27. Kxg2 {[%emt 0:00:07]} Bf3+ {[%emt 0:00:03]} 28. Kh2 {[%emt 0:00:27]} Bxe4 {[%emt 0:00:13]} 29. dxe4 {[%emt 0:00:51]} Nf3+ {[%emt 0:00:05]} 30. Kh1 {[%emt 0:00:13]} Qxe4 {[%emt 0:00:32]} 31. Qf4 {[%emt 0:00:43]} Qxf4 {[%emt 0:00:11]} 0-1